fUST/lending_fUST_20240524
["ID","MTS","AMOUNT","RATE_DAILY","PERIOD"]
[327790343,1716484052450,-500.0,0.00024657,2]
[327790344,1716484052471,-500.0,0.00024657,2]
[327790345,1716484052492,-500.0,0.00024657,2]
[327790346,1716484052512,-506.4024835,0.00024657,2]
[327790347,1716484052535,-500.0,0.00024657,2]
[327790348,1716484052556,-500.0,0.00024657,2]
[327790349,1716484052578,-500.0,0.00024657,2]
[327790350,1716484052599,-676.24,0.00024657,2]
[327790351,1716484052620,-944.53,0.00024657,2]
[327790352,1716484052641,-4437.78,0.00024657,2]
[327790353,1716484052661,-500.0,0.00024657,2]
[327790354,1716484052680,-500.0,0.00024657,2]
[327790355,1716484052702,-763.45,0.00024657,2]
[327790356,1716484052721,-504.05,0.00024657,2]
[327790357,1716484052742,-533.29,0.00024657,2]
[327790358,1716484052763,-653.69,0.00024657,2]
[327790359,1716484052788,-1841.98,0.00024657,2]
[327790360,1716484052812,-500.0,0.00024657,2]
[327790361,1716484052834,-500.0,0.00024657,2]
[327790362,1716484052854,-761.61,0.00024657,2]
[327790363,1716484052874,-500.0,0.00024657,2]
[327790364,1716484052894,-500.0,0.00024657,2]
[327790365,1716484052914,-500.0,0.00024657,2]
[327790366,1716484052934,-2897.08,0.00024657,2]
[327790367,1716484052953,-500.0,0.00024657,2]
[327790368,1716484052975,-500.0,0.00024657,2]
[327790369,1716484052994,-500.0,0.00024657,2]
[327790370,1716484053014,-151.0,0.00024657,2]
[327790371,1716484053036,-500.0,0.00024657,2]
[327790372,1716484053057,-500.0,0.00024657,2]
[327790373,1716484053078,-500.0,0.00024657,2]
[327790374,1716484053100,-500.0,0.00024657,2]
[327790375,1716484053120,-500.0,0.00024657,2]
[327790376,1716484053141,-151.0,0.00024657,2]
[327790377,1716484053162,-500.0,0.00024657,2]
[327790378,1716484053183,-1332.99,0.00024657,2]
[327790379,1716484053204,-739.92,0.00024657,2]
[327790380,1716484053223,-4437.92,0.00024657,2]
[327790381,1716484053244,-500.0,0.00024657,2]
[327790382,1716484053263,-500.0,0.00024657,2]
[327790383,1716484053286,-1999.9,0.00024657,2]
[327790384,1716484053306,-500.0,0.00024657,2]
[327790385,1716484053326,-500.0,0.00024657,2]
[327790386,1716484053348,-500.0,0.00024657,2]
[327790387,1716484053367,-500.0,0.00024657,2]
[327790388,1716484053388,-500.0,0.00024657,2]
[327790389,1716484053408,-500.0,0.00024657,2]
[327790390,1716484053428,-1194.43,0.00024657,2]
[327790391,1716484053448,-500.0,0.00024657,2]
[327790392,1716484053468,-500.0,0.00024657,2]
[327790393,1716484053488,-2676.29,0.00024657,2]
[327790394,1716484053508,-500.0,0.00024657,2]
[327790395,1716484053530,-532.73716483,0.00024657,2]
[327790396,1716484053550,-500.0,0.00024657,2]
[327790397,1716484053570,-500.0,0.00024657,2]
[327790398,1716484053590,-500.0,0.00024657,2]
[327790399,1716484053609,-500.0,0.00024657,2]
[327790400,1716484053629,-500.72946718,0.00024657,2]
[327790401,1716484053650,-500.0,0.00024657,4]
[327790402,1716484053670,-500.0,0.00024657,2]
[327790403,1716484053690,-500.0,0.00024657,2]
[327790404,1716484053711,-500.0,0.00024657,2]
[327790405,1716484053732,-500.0,0.00024657,2]
[327790406,1716484053752,-500.0,0.00024657,2]
[327790407,1716484053774,-1425.42,0.00024657,2]
[327790408,1716484053799,-211.514349,0.00024657,2]
[327790409,1716484053821,-500.0,0.00024657,2]
[327790410,1716484053846,-566.99,0.00024657,2]
[327790411,1716484053868,-500.0,0.00024657,2]
[327790412,1716484053892,-500.0,0.00024657,2]
[327790413,1716484053914,-211.514349,0.00024657,2]
[327790414,1716484053934,-500.0,0.00024657,2]
[327790415,1716484053960,-583.05,0.00024657,2]
[327790416,1716484053981,-1453.6,0.00024657,2]
[327790417,1716484054002,-500.0,0.00024657,2]
[327790418,1716484054023,-500.0,0.00024657,2]
[327790419,1716484054045,-500.0,0.00024657,2]
[327790420,1716484054066,-417.775985,0.00024657,2]
[327790421,1716484054086,-908.05,0.00024657,2]
[327790422,1716484054106,-500.0,0.00024657,2]
[327790423,1716484054127,-500.0,0.00024657,2]
[327790424,1716484054148,-417.775985,0.00024657,2]
[327790425,1716484054169,-3000.0,0.00024657,2]
[327790426,1716484054190,-500.0,0.00024657,2]
[327790427,1716484054211,-1236.33,0.00024657,2]
[327790428,1716484054231,-500.0,0.00024657,2]
[327790429,1716484054252,-547.97613513,0.00024657,2]
[327790430,1716484054275,-837.22,0.00024657,2]
[327790431,1716484054297,-603.68,0.00024657,2]
[327790432,1716484054318,-775.27,0.00024657,2]
[327790433,1716484054340,-500.0,0.00024657,2]
[327790434,1716484054362,-500.0,0.00024657,2]
[327790435,1716484054384,-500.0,0.00024657,2]
[327790436,1716484054408,-500.0,0.00024657,2]
[327790437,1716484054552,-500.0,0.00024657,2]
[327790438,1716484054573,-500.0,0.00024657,2]
[327790439,1716484054594,-500.0,0.00024657,2]
[327790440,1716484054616,-1883.31,0.00024657,2]
[327790441,1716484054638,-500.0,0.00024657,2]
[327790442,1716484054660,-500.0,0.00024657,2]
[327790443,1716484054681,-519.19,0.00024657,2]
[327790444,1716484054703,-194.014512,0.00024657,2]
[327790445,1716484054724,-194.014512,0.00024657,2]
[327790446,1716484054744,-500.0,0.00024657,2]
[327790447,1716484054765,-673.01,0.00024657,2]
[327790448,1716484054787,-500.0,0.00024657,2]
[327790449,1716484054812,-500.0,0.00024657,2]
[327790450,1716484054832,-515.84,0.00024657,2]
[327790451,1716484054853,-500.0,0.00024657,2]
[327790452,1716484054875,-763.7,0.00024657,2]
[327790453,1716484054896,-1006.05891986,0.00024657,2]
[327790454,1716484054917,-1392.27,0.00024657,2]
[327790455,1716484054936,-500.0,0.00024657,2]
[327790456,1716484054957,-500.0,0.00024657,2]
[327790457,1716484054978,-500.0,0.00024657,2]
[327790458,1716484054999,-500.0,0.00024657,2]
[327790459,1716484055019,-500.0,0.00024657,2]
[327790460,1716484055040,-500.0,0.00024657,2]
[327790461,1716484055060,-322.63661881,0.00024657,2]
[327790462,1716484055081,-3135.73,0.00024657,2]
[327790463,1716484055100,-500.0,0.00024657,2]
[327790464,1716484055122,-592.01,0.00024657,2]
[327790465,1716484055142,-663.12,0.00024657,2]
[327790466,1716484055164,-300.0,0.00024657,2]
[327790467,1716484055184,-2423.39,0.00024657,2]
[327790468,1716484055205,-500.0,0.00024657,2]
[327790469,1716484055225,-4049.98,0.00024657,2]
[327790470,1716484055245,-500.0,0.00024657,2]
[327790471,1716484055266,-500.0,0.00024657,2]
[327790472,1716484055289,-1459.5,0.00024657,2]
[327790473,1716484055310,-628.12460585,0.00024657,2]
[327790474,1716484055331,-500.0,0.00024657,2]
[327790475,1716484055353,-500.0,0.00024657,2]
[327790476,1716484055374,-500.0,0.00024657,2]
[327790477,1716484055394,-198.90523639,0.00024657,2]
[327790478,1716484055414,-622.64,0.00024657,2]
[327790479,1716484055434,-696.46,0.00024657,2]
[327790480,1716484055453,-500.0,0.00024657,2]
[327790481,1716484055473,-2236.11,0.00024657,2]
[327790482,1716484055493,-1782.68,0.00024657,2]
[327790483,1716484055514,-500.0,0.00024657,2]
[327790484,1716484055537,-846.83,0.00024657,2]
[327790485,1716484055562,-284.22379098,0.00024657,2]
[327790486,1716484055582,-500.0,0.00024657,2]
[327790487,1716484055602,-500.0,0.00024657,2]
[327790488,1716484055622,-500.0,0.00024657,2]
[327790489,1716484055643,-641.95,0.00024657,2]
[327790490,1716484055664,-883.41,0.00024657,2]
[327790491,1716484055684,-202.08422932,0.00024657,2]
[327790615,1716484240349,-948.436547,0.00023588,2]
[327790616,1716484240361,-1086.60085844,0.00023588,2]
[327790617,1716484240377,-22864.96259456,0.00023588,2]
[327790618,1716484240387,-500.0,0.00024656,2]
[327790619,1716484240397,-500.0,0.00024656,2]
[327790620,1716484240406,-500.0,0.00024656,2]
[327790621,1716484240415,-892.51952482,0.00024657,11]
[327790622,1716484240426,-330.9182347,0.00024657,2]
[327790623,1716484240435,-500.0,0.00024657,2]
[327790624,1716484240445,-603.88,0.00024657,2]
[327790625,1716484240455,-2841.81,0.00024657,2]
[327790626,1716484240464,-500.0,0.00024657,2]
[327790627,1716484240474,-500.0,0.00024657,2]
[327790628,1716484240483,-500.0,0.00024657,2]
[327790629,1716484240493,-500.0,0.00024657,2]
[327790630,1716484240503,-500.0,0.00024657,2]
[327790631,1716484240512,-500.0,0.00024657,2]
[327790632,1716484240522,-973.04,0.00024657,2]
[327790633,1716484240531,-392.99187333,0.00024657,2]
[327790634,1716484240540,-46.68090283,0.00024657,2]
[327790737,1716484242818,-453.31909717,0.00024657,2]
[327790739,1716484242830,-500.0,0.00024657,2]
[327790741,1716484242840,-500.0,0.00024657,2]
[327790743,1716484242851,-500.0,0.00024657,2]
[327790745,1716484242863,-500.0,0.00024657,2]
[327790747,1716484242873,-500.0,0.00024657,2]
[327790749,1716484242882,-500.0,0.00024657,2]
[327790751,1716484242894,-1527.96,0.00024657,2]
[327790753,1716484242904,-500.0,0.00024657,2]
[327790755,1716484242914,-857.2,0.00024657,2]
[327790757,1716484242924,-500.0,0.00024657,2]
[327790759,1716484242934,-500.0,0.00024657,2]
[327790761,1716484242944,-500.0,0.00024657,2]
[327790763,1716484242953,-600.14,0.00024657,2]
[327790765,1716484242963,-500.0,0.00024657,2]
[327790767,1716484242972,-500.0,0.00024657,2]
[327790769,1716484242982,-500.0,0.00024657,2]
[327790772,1716484242993,-500.0,0.00024657,2]
[327790774,1716484243002,-1683.65,0.00024657,2]
[327790776,1716484243011,-723.4,0.00024657,2]
[327790778,1716484243022,-47.40862907,0.00024657,2]
[327790827,1716484243465,-667.76137093,0.00024657,2]
[327790829,1716484243475,-500.0,0.00024657,2]
[327790831,1716484243485,-500.0,0.00024657,2]
[327790833,1716484243495,-500.0,0.00024657,2]
[327790835,1716484243505,-509.82003272,0.00024657,2]
[327790837,1716484243514,-3637.99,0.00024657,2]
[327790838,1716484243524,-500.0,0.00024657,2]
[327790840,1716484243533,-500.0,0.00024657,2]
[327790843,1716484243543,-930.14266768,0.00024657,2]
[327790905,1716484246747,-462.65733232,0.00024657,2]
[327790906,1716484246757,-556.09,0.00024657,2]
[327790907,1716484246768,-993.81,0.00024657,2]
[327790908,1716484246778,-1224.44,0.00024657,2]
[327790909,1716484246788,-500.0,0.00024657,2]
[327790910,1716484246797,-500.0,0.00024657,2]
[327790911,1716484246807,-2982.09,0.00024657,2]
[327790912,1716484246816,-1747.45,0.00024657,2]
[327790913,1716484246826,-500.0,0.00024657,2]
[327790914,1716484246835,-284.064494,0.00024657,2]
[327790915,1716484246845,-859.32,0.00024657,2]
[327790916,1716484246859,-500.0,0.00024657,2]
[327790917,1716484246869,-4652.9,0.00024657,2]
[327790918,1716484246880,-198.29264073,0.00024657,2]
[327790919,1716484246889,-500.0,0.00024657,2]
[327790920,1716484246900,-628.68,0.00024657,2]
[327790921,1716484246909,-1792.73,0.00024657,2]
[327790922,1716484246920,-443.5414968,0.00024657,2]
[327790923,1716484246931,-500.0,0.00024657,2]
[327790924,1716484246941,-688.8,0.00024657,2]
[327790925,1716484246950,-795.51,0.00024657,2]
[327790926,1716484246960,-500.0,0.00024657,2]
[327790927,1716484246970,-500.0,0.00024657,2]
[327790928,1716484246980,-979.18,0.00024657,2]
[327790929,1716484246990,-624.89,0.00024657,2]
[327790930,1716484247000,-229.422419,0.00024657,2]
[327790931,1716484247010,-642.31,0.00024657,2]
[327790932,1716484247019,-500.0,0.00024657,2]
[327790933,1716484247029,-229.422419,0.00024657,2]
[327790934,1716484247039,-500.0,0.00024657,2]
[327790935,1716484247052,-500.0,0.00024657,2]
[327790936,1716484247062,-500.0,0.00024657,2]
[327790937,1716484247071,-500.0,0.00024657,2]
[327790938,1716484247081,-500.0,0.00024657,2]
[327790939,1716484247091,-1283.84,0.00024657,2]
[327790940,1716484247101,-642.47,0.00024657,2]
[327790941,1716484247111,-810.03,0.00024657,2]
[327790942,1716484247121,-500.0,0.00024657,2]
[327790943,1716484247132,-678.31,0.00024657,2]
[327790944,1716484247142,-1820.28,0.00024657,2]
[327790945,1716484247152,-500.0,0.00024657,2]
[327790946,1716484247161,-500.0,0.00024657,2]
[327790947,1716484247171,-500.0,0.00024657,2]
[327790948,1716484247181,-500.0,0.00024657,2]
[327790949,1716484247191,-500.0,0.00024657,2]
[327790950,1716484247201,-4166.66,0.00024657,2]
[327790951,1716484247211,-4166.66,0.00024657,3]
[327790952,1716484247222,-3356.93494298,0.00024657,4]
[327790989,1716485233136,-166.666666,0.00022177,2]
[327790990,1716485233161,-277.34347964,0.00022557,2]
[327790991,1716485233181,-166.666666,0.00022781,2]
[327790992,1716485233202,-151.0,0.00023002,3]
[327790993,1716485233222,-1033.38923728,0.00023057,2]
[327790994,1716485233248,-203.53287902,0.00023057,2]
[327790995,1716485233272,-13190.41686232,0.00023067,2]
[327790997,1716485346109,-184.89565309,0.00020967,2]
[327791009,1716485405916,285.92791132,0.00020967,2]
[327791010,1716485409235,299.60682001,0.00020967,2]
[327791011,1716485413065,3632.73611165,0.00020967,2]
[327791012,1716485423247,299.60682001,0.00020967,2]
[327791013,1716485423893,165.34622103,0.00020967,2]
[327791014,1716485429057,3632.73611165,0.00020967,2]
[327791037,1716485432794,-3980.09499401,0.00023067,2]
[327791040,1716485432807,-24900.0,0.00023141,2]
[327791042,1716485432820,-151.99986026,0.000233,2]
[327791044,1716485432832,-151.99986026,0.00023302,2]
[327791047,1716485432845,-166.666666,0.00023386,2]
[327791049,1716485432857,-153.0,0.00023699,2]
[327791051,1716485432870,-153.0,0.00023699,2]
[327791054,1716485432882,-153.0,0.00023699,2]
[327791056,1716485432894,-153.0,0.00023741,2]
[327791058,1716485432906,-166.666666,0.00023991,2]
[327791061,1716485432918,-473.241196,0.00024384,2]
[327791063,1716485432931,-153.0,0.00024384,2]
[327791065,1716485432944,-153.0,0.00024384,2]
[327791068,1716485432955,-153.0,0.00024384,2]
[327791071,1716485432968,-153.0,0.00024384,2]
[327791075,1716485432980,-417.32360569,0.00024401,2]
[327791079,1716485432993,-503.52614139,0.00024416,2]
[327791082,1716485433007,-192.73036432,0.00024555,2]
[327791084,1716485433019,-192.73036428,0.00024556,2]
[327791087,1716485433032,-192.73036428,0.00024556,2]
[327791089,1716485433045,-192.73036428,0.00024557,2]
[327791092,1716485433058,-192.73036428,0.00024557,2]
[327791094,1716485433071,-166.666666,0.00024595,2]
[327791096,1716485433082,-281.0,0.000246,2]
[327791098,1716485433091,-1539.13356356,0.00024648,2]
[327791325,1716485438968,-93.23309551,0.00024648,2]
[327791327,1716485442336,-2593.40123424,0.00024648,2]
[327791329,1716485442346,-187.1961905,0.00024655,2]
[327791330,1716485442356,-10454.14770375,0.00024655,2]
[327791331,1716485442365,-20087.21714052,0.00024655,2]
[327791332,1716485442375,-159.73051569,0.00024655,2]
[327791333,1716485442385,-155.0418613,0.00024656,2]
[327791334,1716485442395,-4693.15522604,0.00024656,2]
[327791335,1716485442404,-182.33894138,0.00024656,2]
[327791336,1716485442414,-276.42418983,0.00024656,2]
[327791337,1716485442424,-295.72633353,0.00024656,2]
[327791338,1716485442433,-500.0,0.00024656,2]
[327791339,1716485442443,-500.0,0.00024656,2]
[327791340,1716485442452,-500.0,0.00024656,2]
[327791341,1716485442461,-500.0,0.00024656,2]
[327791342,1716485442471,-500.0,0.00024656,2]
[327791343,1716485442480,-173.1443616,0.00024656,2]
[327791403,1716485444421,-304.132991,0.00024656,2]
[327791405,1716485444433,-22.7226474,0.00024656,2]
[327791407,1716485444443,-500.0,0.00024656,2]
[327791409,1716485444454,-500.0,0.00024656,2]
[327791411,1716485444464,-500.0,0.00024656,2]
[327791413,1716485444474,-500.0,0.00024656,2]
[327791415,1716485444484,-500.0,0.00024656,2]
[327791417,1716485444494,-500.0,0.00024656,2]
[327791419,1716485444503,-500.0,0.00024656,2]
[327791421,1716485444513,-500.0,0.00024656,2]
[327791424,1716485444524,-500.0,0.00024656,2]
[327791425,1716485444534,-500.00000001,0.00024656,2]
[327791427,1716485444544,-584.32683266,0.00024656,2]
[327791429,1716485444553,-250.42578542,0.00024656,2]
[327791431,1716485444563,-76.03702573,0.00024657,11]
[327791460,1716485445107,3632.73611165,0.00020967,2]
[327791463,1716485446032,2225.71638246,0.00021,2]
[327791464,1716485446056,1754.37861155,0.00021,2]
[327791499,1716485447254,299.60682001,0.00020967,2]
[327791500,1716485462038,3980.09499401,0.00021,2]
[327791501,1716485463068,3632.73611165,0.00020967,2]
[327791502,1716485467239,299.60682001,0.00020967,2]
[327791504,1716485481088,3632.73611165,0.00020967,2]
[327791506,1716485484026,3980.09499401,0.00021,2]
[327791507,1716485485244,299.60682001,0.00020967,2]
[327791508,1716485501064,3632.73611165,0.00020967,2]
[327791509,1716485503509,406.31765597,0.00020967,2]
[327791510,1716485506025,3980.09499401,0.00021,2]
[327791512,1716485521065,3632.73611165,0.00020967,2]
[327791513,1716485522030,2814.62738369,0.00021,2]
[327791514,1716485522049,1165.46761032,0.00021,2]
[327791515,1716485522663,154.93802479,0.00020913,2]
[327791516,1716485539072,2940.82539332,0.00020967,2]
[327791517,1716485542032,3206.3219607,0.00021,2]
[327791518,1716485561683,331.14504532,9.999e-05,2]
[327791521,1716485687177,180.778799,0.00027671,120]
[327791522,1716485779644,684.99447314,9.999e-05,2]
[327791523,1716485799193,1351.24581198,9.999e-05,2]
[327791524,1716485807434,690.60091878,9.999e-05,2]
[327791531,1716486344175,-260.34635185,0.00012489,2]
[327791532,1716486443116,-1810.23955341,0.00012498,2]
[327791533,1716486443152,-168.33869908,0.00012498,2]
[327791534,1716486443174,-2635.84610155,0.00012499,2]
[327791535,1716486443194,-6900.0,0.000125,2]
[327791536,1716486443215,-3000.0,0.00016222,2]
[327791537,1716486443238,-19567.58198551,0.00016229,2]
[327791538,1716486452098,-239.69802187,0.00016229,2]
[327791539,1716486545091,-1411.5617895,0.00016229,2]
[327791540,1716486546151,-3681.15820312,0.00016229,2]
[327791541,1716486546171,-5943.34521918,0.00016229,2]
[327791542,1716486546192,-223.79761603,0.00016229,2]
[327791543,1716486546215,-664.34604286,0.00017798,2]
[327791544,1716486546235,-10457.73347478,0.00017898,2]
[327791545,1716486546256,-347.6958016,0.00018369,2]
[327791546,1716486546277,-150.0,0.000189,2]
[327791547,1716486546298,-168.746906,0.00019178,2]
[327791548,1716486546319,-664.34604286,0.00019955,2]
[327791549,1716486546341,-4694.88024875,0.00021,2]
[327791550,1716486546361,-3980.09499401,0.00021,2]
[327791551,1716486546381,-166.666666,0.00021918,2]
[327791552,1716486546402,-664.34604286,0.00022113,2]
[327791553,1716486553685,155.04341216,0.00022113,2]
[327791554,1716486574031,12333.20181566,0.00022113,2]
[327791611,1716486632360,-166.666666,0.00022431,2]
[327791612,1716486632370,-166.666666,0.00022944,2]
[327791613,1716486632379,-151.0,0.00023058,3]
[327791614,1716486632388,-151.0,0.00023058,3]
[327791615,1716486632398,-921.28647666,0.00023422,2]
[327791616,1716486632407,-166.666666,0.00023456,2]
[327791617,1716486632416,-153.0,0.00023778,2]
[327791618,1716486632425,-204.5866529,0.00023836,2]
[327791619,1716486632435,-204.5866529,0.00023836,2]
[327791620,1716486632444,-204.5866529,0.00023836,2]
[327791621,1716486632453,-204.5866529,0.00023836,2]
[327791622,1716486632463,-153.0,0.00023878,2]
[327791623,1716486632472,-150.0,0.000239,2]
[327791624,1716486632481,-166.666666,0.00023969,2]
[327791625,1716486632490,-151.0,0.00024,5]
[327791626,1716486632499,-153.0,0.00024055,2]
[327791627,1716486632508,-4233.30065365,0.00024277,2]
[327791628,1716486632517,-553.818741,0.00024384,2]
[327791629,1716486632527,-949.58287647,0.0002441,2]
[327791630,1716486632536,-166.666666,0.00024482,2]
[327791631,1716486632545,-198.18192056,0.000245,2]
[327791632,1716486632554,-272.22,0.00024547,3]
[327791633,1716486632563,-816.69,0.00024547,3]
[327791634,1716486632572,-2177.98605443,0.00024557,2]
[327791635,1716486632582,-2000.0,0.00024557,2]
[327791636,1716486632593,-34830.0109503,0.00024557,3]
[327791649,1716486638141,-3895.03734428,0.00024557,3]
[327791650,1716486638152,-198.18192055,0.00024557,2]
[327791651,1716486638162,-281.0,0.000246,2]
[327791652,1716486638172,-150.0,0.0002465,7]
[327791653,1716486638181,-522.78148972,0.00024653,2]
[327791654,1716486638191,-1412.99379109,0.00024653,2]
[327791655,1716486638200,-4693.15522604,0.00024653,2]
[327791656,1716486638210,-390.0,0.00024654,2]
[327791657,1716486638219,-500.0,0.00024654,2]
[327791658,1716486638228,-550.0,0.00024654,2]
[327791659,1716486638238,-420.73116494,0.00024654,2]
[327791660,1716486638248,-500.0,0.00024654,2]
[327791661,1716486638257,-175.8818897,0.00024654,2]
[327791662,1716486638267,-500.0,0.00024654,2]
[327791663,1716486638276,-500.0,0.00024654,2]
[327791664,1716486638287,-500.0,0.00024654,2]
[327791665,1716486638297,-500.0,0.00024654,2]
[327791666,1716486638306,-500.0,0.00024654,2]
[327791667,1716486638316,-500.0,0.00024654,2]
[327791668,1716486638326,-500.0,0.00024654,2]
[327791669,1716486638336,-500.0,0.00024654,2]
[327791670,1716486638345,-500.0,0.00024654,2]
[327791671,1716486638355,-500.0,0.00024654,2]
[327791672,1716486638364,-500.0,0.00024654,2]
[327791673,1716486638374,-500.0,0.00024654,2]
[327791674,1716486638384,-385.2980498,0.00024654,2]
[327791675,1716486638394,-165.12773562,0.00024654,2]
[327791676,1716486638403,-500.0,0.00024654,2]
[327791677,1716486638412,-265.23184288,0.00024654,2]
[327791678,1716486638421,-408.23942826,0.00024654,2]
[327791679,1716486638431,-10995.64949788,0.00024655,11]
[327791680,1716486638440,-1374.42000008,0.00024655,2]
[327791681,1716486638451,-10112.73841722,0.00024655,2]
[327791682,1716486638460,-1875.29621628,0.00024655,2]
[327791683,1716486638470,-156.49929555,0.00024655,2]
[327791684,1716486638480,-155.0356582,0.00024655,2]
[327791685,1716486638489,-274.38861044,0.00024655,2]
[327791686,1716486638499,-207.49538567,0.00024655,2]
[327791687,1716486638508,-550.85396294,0.00024655,2]
[327791688,1716486638518,-308.15113988,0.00024655,2]
[327791689,1716486638527,-159.73051569,0.00024655,2]
[327791690,1716486638538,-14747.77032752,0.00024655,2]
[327791691,1716486638551,-238.83667024,0.00024655,2]
[327791692,1716486638560,-187.1961905,0.00024655,2]
[327791693,1716486638569,-155.13329161,0.00024655,2]
[327791694,1716486638579,-232.70495069,0.00024655,2]
[327791695,1716486638589,-702.80759732,0.00024655,2]
[327791696,1716486638603,-430.3618645,0.00024655,2]
[327791697,1716486638612,-528.62113532,0.00024655,2]
[327791698,1716486638622,-287.96367402,0.00024655,2]
[327791699,1716486638633,-658.33611615,0.00024655,2]
[327791700,1716486638642,-155.04031048,0.00024655,2]
[327791701,1716486638652,-2679.56412785,0.00024655,2]
[327791702,1716486638661,-320.01286512,0.00024655,2]
[327791703,1716486638672,-1972.55891415,0.00024655,2]
[327791704,1716486638682,-155.04031048,0.00024655,2]
[327791705,1716486638691,-585.3334164,0.00024655,2]
[327791706,1716486638701,-330.9835972,0.00024655,2]
[327791707,1716486638710,-187.71376422,0.00024655,4]
[327791708,1716486638720,-155.0356582,0.00024655,2]
[327791709,1716486638728,-772.21556016,0.00024655,2]
[327791710,1716486638738,-1893.86633087,0.00024655,2]
[327791711,1716486638747,-684.66208646,0.00024655,2]
[327791712,1716486638756,-1179.31962588,0.00024655,2]
[327791713,1716486638765,-1350.17092201,0.00024655,2]
[327791714,1716486638775,-690.22101912,0.00024655,2]
[327791715,1716486638784,-2374.81240837,0.00024655,2]
[327791716,1716486638795,-1196.62384614,0.00024655,2]
[327791717,1716486638804,-228.6001014,0.00024656,2]
[327791718,1716486638813,-7539.41506108,0.00024656,2]
[327791719,1716486638870,-3518.99978731,0.00024656,2]
[327791720,1716486638879,-1340.23983105,0.00024657,11]
[327791721,1716486638888,-762.37,0.00024657,2]
[327791722,1716486638898,-500.0,0.00024657,2]
[327791723,1716486638907,-500.0,0.00024657,2]
[327791724,1716486638916,-823.51,0.00024657,2]
[327791725,1716486638925,-500.0,0.00024657,2]
[327791726,1716486638934,-500.0,0.00024657,2]
[327791727,1716486638943,-602.49,0.00024657,2]
[327791728,1716486638952,-500.0,0.00024657,2]
[327791729,1716486638962,-660.1,0.00024657,2]
[327791730,1716486638971,-500.0,0.00024657,2]
[327791731,1716486638980,-500.0,0.00024657,2]
[327791732,1716486638989,-500.0,0.00024657,2]
[327791733,1716486638998,-500.0,0.00024657,2]
[327791734,1716486639007,-500.0,0.00024657,2]
[327791735,1716486639017,-719.99,0.00024657,2]
[327791736,1716486639026,-500.0,0.00024657,2]
[327791737,1716486639035,-500.0,0.00024657,2]
[327791738,1716486639046,-500.0,0.00024657,2]
[327791739,1716486639054,-500.0,0.00024657,2]
[327791740,1716486639064,-561.81,0.00024657,2]
[327791741,1716486639074,-500.0,0.00024657,2]
[327791742,1716486639083,-500.0,0.00024657,2]
[327791743,1716486639092,-500.0,0.00024657,2]
[327791744,1716486639102,-633.32,0.00024657,2]
[327791745,1716486639111,-227.10264282,0.00024657,2]
[327791746,1716486639121,-340.95617396,0.00024657,2]
[327791747,1716486639130,-633.08,0.00024657,2]
[327791748,1716486639139,-500.0,0.00024657,2]
[327791749,1716486639148,-500.0,0.00024657,2]
[327791750,1716486639157,-539.58,0.00024657,2]
[327791751,1716486639167,-500.94,0.00024657,2]
[327791752,1716486639176,-500.0,0.00024657,2]
[327791753,1716486639186,-500.38,0.00024657,2]
[327791754,1716486639195,-500.0,0.00024657,2]
[327791755,1716486639204,-500.0,0.00024657,2]
[327791756,1716486639214,-500.0,0.00024657,2]